{"text_format":"1","workbook":"xlsx","n_sheets":10,"sheets":["Form Information","General Application Form","Schedule A","Schedule B","Schedule C","(hidden) Schedule B - Appendix","Schedule D","Schedule E","Schedule F","dropdowns"],"not_rendered":{"charts":0,"images":1,"macros":1,"external_links":1,"defined_names":25,"comments":2,"pivot_tables":0},"unopened":[],"bounds":{"document_bytes":16777216,"sheet_cells":100000,"rows_first":2000,"rows_last":500,"rows_between":2000,"halvings":0,"cell_chars":16384,"cell_head_chars":4096},"cells_cut":0,"cells_raw":0,"read":"whole","date_system":"1900"}

{"sheet":"Form Information","index":0,"n_rows":31,"n_cols":2,"rows_kept":31,"cut":false,"hidden":false,"merged":[[28,1,28,14],[0,1,0,7],[27,1,27,14],[30,1,30,14],[4,1,4,14],[6,1,6,14],[19,1,19,14],[20,1,20,14],[24,1,24,14],[29,1,29,14],[21,1,21,14],[22,1,22,14],[25,1,25,14],[23,1,23,14],[26,1,26,14],[5,1,5,14]]}
[null,"Cost Containment Designation Application Package"]
[]
[null,"> FORM INFORMATION"]
[]
[null,"The Cost Containment program is intended to provide relief to facility owners experiencing economic hardship as a result of compliance costs under the Technology Innovation and Emission Reduction Regulation."]
[null,"Note: As a first step in completing the application form, please enter the anticipated 'application date' in the \"General Application Form\" tab as some form functionality is dependant on this input. "]
[null,"All applications must include the following completed forms of this application package to be considered for program designation:"]
[null,"o  General Application Form"]
[null,"o  Schedule A – General Eligibility Assessment"]
[null,"o  Schedule B – Economic Hardship Tests"]
[null,"o  Schedule D – Funding and Benefits Disclosure"]
[null,"o  Schedule E – Previous Cost Containment Program Status Disclosure (as necessary)"]
[null,"o  Schedule F – Agreement and Statement of Certification"]
[]
[null,"An application may also include: "]
[null,"o A completed Schedule C - Additional Cost Containment Allocation (BCCA) Application. "]
[null,"A BCCA application should only be completed if the applicant believes the facility is eligible for BCCA support (review the Standard for Developing Benchmarks for eligibility information). "]
[null,"Otherwise it may be left blank."]
[null,"Each applicant must also submit the following documents as part of the application package:"]
[null,"Attachment 1 – Financial Statements - facility-specific financial statements for three calendar years of operation occurring immediately prior to the application submission date (subject to audit as per requirements of the Standard for Validation, Verification and Audit). "]
[null,"Attachment 2 – Financial Forecast - facility-specific financial forecast for each calendar year the applicant is applying for cost containment status."]
[null,"Attachment 3 - Net Electricity Import and Export Forecast (if applicable) - annual facility-specific forecast of net electricity import and exports for each calendar year the applicant is applying for cost containment status."]
[null,"Attachment 4 - Net Heat Import or Export Forecast (if applicable) - annual facility-specific forecast of net heat imports and exports for each calendar year the applicant is applying for cost containment status."]
[null,"Attachment 5 - Net Hydrogen Import and Export Forecast (if applicable) - annual facility-specific forecast of net hydrogen imports and exports for each calendar year the applicant is applying for cost containment status. "]
[null,"Attachment 6 – Emissions Reduction Plan "]
[null,"Attachment 7 – Statement of Validation for the Emissions Reduction Plan"]
[null,"Requirements for preparing financial statements, all applicable forecasts, and the emissions reduction plan for purposes of the application are provided in the Standard for Developing Benchmarks and the Standard for Validation, Verification and Audit. These standards should be carefully reviewed prior to preparing the application. "]
[null,"Application Timelines: The deadline to submit a cost containment program application is 23:59:59 March 31 of the year following the first year the cost containment designation is requested.   \n\nApplications will be assessed on a rolling basis.\n"]
[null,"Incomplete application forms, or applications that do not include all of the necessary attachments, will not be evaluated and the applicant will be notified."]
[null,"Submission: Application forms and application attachments must be formally submitted by email to EPA.GHG@gov.ab.ca. An email receipt will be sent to an applicant confirming an application has been received for consideration. "]
[null,"Confidentiality: As per section 28(1) of the Technology Innovation and Emission Reduction Regulation, an applicant may include a letter to the Director with their application requesting  that certain information be kept confidential for a period of 5 years after the date of submission.  The information must be commercial, financial scientific or technical information that would reveal proprietary business, competitive, or trade secret information about a specific facility, technology or corporate initiative for the confidentiality clause to be considered.  The information must also reveal proprietary business, competitive, or trade secret information about a specific facility, technology or corporate initiative.  To address a request for confidentiality, a director is required to consider the impact to the organization’s competitive or negotiating position or the resulting undue financial loss or gain.\n\nConfidentiality requests for this type of information fall under section 16(1) of Alberta’s Freedom of Information and Protection of Privacy Act, which states that the head of the public body must refuse to disclose information that meets the above requirements.  To assure appropriate considerations can be made to address a confidentiality request, it is strongly recommended that each applicant include a letter to the director, as an additional attachment to their application package, that would demonstrate why the information should be kept confidential.\n\nInformation submitted as part of an application will be stored on a secure Government of Alberta server for a period of up to 5 years. "]

{"sheet":"General Application Form","index":1,"n_rows":74,"n_cols":13,"rows_kept":74,"cut":false,"hidden":false,"merged":[[71,1,71,2],[74,1,79,14],[70,1,70,14],[52,1,52,2],[55,1,58,14],[61,1,68,14],[46,1,46,3],[46,6,46,8],[49,1,49,2],[23,1,23,9],[31,3,31,6],[31,9,31,12],[26,3,26,14],[28,3,28,5],[28,13,28,14],[34,1,34,5],[37,1,37,5],[40,1,40,5],[43,6,43,8],[43,1,43,3],[17,3,17,4],[17,9,17,10],[19,3,19,4],[19,9,19,14],[15,3,15,5],[13,3,13,14],[15,13,15,14],[0,1,0,7],[5,1,5,3],[5,6,5,14],[8,1,8,2],[11,3,11,7],[11,10,11,14]]}
[null,"Cost Containment Designation Application Package"]
[]
[null,"> GENERAL APPLICATION FORM"]
[]
[null,"Application Date (mm/dd/yyyy)",null,null,null,null,"Legal Business Name of Applicant (Person Responsible as per Section 1(1)(hh) of TIER)"]
[]
[]
[null,"Is this business licensed in Alberta? (Yes/No)"]
[]
[]
[null,"Facility Owner Representative Contact Information (Responsible Official)"]
[null,null,"Name:",null,null,null,null,null,null,"Title:"]
[]
[null,null,"Address:"]
[]
[null,null,"City / Town:",null,null,null,null,null,"Province:",null,null,null,"Postal Code:"]
[]
[null,null,"Phone (office):",null,null,null,null,null,"Phone (mobile):"]
[]
[null,null,"Fax:",null,null,null,null,null,"Email:"]
[]
[]
[null,"Facility Name"]
[]
[null,"Add lin for TIER ID"]
[null,"Facility Mailing Address"]
[null,null,"Address:"]
[]
[null,null,"City / Town:",null,null,null,null,null,"Province:",null,null,null,"Postal Code:"]
[]
[null,"Facility Geographic Coordinates (longitude and latitude in NAD 83)"]
[null,null,"Longitude:",null,null,null,null,null,"Latitude:"]
[]
[null,"Nearest City / District / Municipality / County to Facility"]
[]
[]
[null,"Facility Operator (if different than applicant)"]
[]
[]
[null,"Sector"]
[]
[]
[null,"Facility Completion Date (mm/dd/yyyy)",null,null,null,null,"Date of First Operation (mm/dd/yyyy)"]
[]
[]
[null,"EPEA Approval Number (if applicable)"]
[]
[]
[null,"Facility Nominal Electric Generating Capacity (if applicable)"]
[null,null,null,"MW"]
[]
[null,"Is the facility co-located with another facility? (Yes/No)"]
[null,"select answer…"]
[]
[null,"If yes, please describe"]
[]
[]
[]
[]
[]
[null,"Facility description and outputs (include primary and secondary products)"]
[]
[]
[]
[]
[]
[]
[]
[]
[]
[null,"Is the facility expected to experience any extended shutdowns or major operational changes during the period the applicant is applying for cost containment status? (Yes/No)"]
[null,"select answer…"]
[]
[null,"If yes, please describe"]

{"sheet":"Schedule A","index":2,"n_rows":18,"n_cols":17,"rows_kept":18,"cut":false,"hidden":false,"merged":[[0,1,0,7],[14,1,14,2],[16,1,16,14],[17,1,17,2],[5,1,5,2],[8,1,8,2],[7,1,7,14],[11,1,11,2],[13,1,13,14]]}
[null,"Cost Containment Designation Application Package"]
[]
[null,"> SCHEDULE A: GENERAL ELIGIBILITY ASSESSMENT"]
[null,null,null,null,null,null,null,null,null,null,null,null,null,null,null,null,"Eligibility"]
[null,"Is the facility a large emitter or opted-in facility regulated under the Technology Innovation and Emissions Reduction Regulation(TIER)?"]
[null,"select answer…",null,null,null,null,null,null,null,null,null,null,null,null,null,null,{"$f":"IF(B6=\"select answer…\",\"\",(IF(B6=\"yes\",\"Eligible\",\"Ineligible\")))","v":""}]
[]
[null,"Is the applicant expected to experience economic hardship attributable to the compliance costs incurred in respect of the facility under TIER, as defined within the Technology Innovation and Emission Reduction Regulationand the Standard for Developing Benchmarks?"]
[null,"select answer…",null,null,null,null,null,null,null,null,null,null,null,null,null,null,{"$f":"IF(B9=\"select answer…\",\"\",(IF(B9=\"yes\",\"Eligible\",\"Ineligible\")))","v":""}]
[]
[null,"Is the facility the subject of receivership, insolvency or bankruptcy proceeds, or proceedings under the Companies’ Creditors Arrangement Act?"]
[null,"select answer…",null,null,null,null,null,null,null,null,null,null,null,null,null,null,{"$f":"IF(B12=\"select answer…\",\"\",(IF(B12=\"no\",\"Eligible\",\"Ineligible\")))","v":""}]
[]
[null,"Is the applicant in contravention of any compliance obligations to which they are subject under the Envrionmental Protection and Enhancement Act,the Technology Innocation and Emission Regulation,or any other applicable law with respect to the facility?"]
[null,"select answer…",null,null,null,null,null,null,null,null,null,null,null,null,null,null,{"$f":"IF(B15=\"select answer…\",\"\",(IF(B15=\"no\",\"Eligible\",\"Ineligible\")))","v":""}]
[]
[null,"Has the applicant prepared an emissions reduction plan for the facility in accordance with the requirements set out in the Standard for Developing Benchmarks?"]
[null,"select answer…",null,null,null,null,null,null,null,null,null,null,null,null,null,null,{"$f":"IF(B18=\"select answer…\",\"\",(IF(B18=\"yes\",\"Eligible\",\"Ineligible\")))","v":""}]

{"sheet":"Schedule B","index":3,"n_rows":74,"n_cols":29,"rows_kept":74,"cut":false,"hidden":false,"merged":[[0,1,0,5],[3,5,3,9],[73,1,74,3],[36,12,36,14],[28,12,28,14],[20,12,20,14],[20,5,20,9],[36,5,36,9],[10,5,10,9],[12,5,12,9],[14,5,14,9],[16,5,16,9],[73,5,73,9],[8,5,8,9],[22,1,23,3],[30,1,31,3],[38,1,39,3],[55,5,55,9],[57,5,57,9],[61,5,61,9],[63,5,63,9],[44,5,44,9],[45,5,45,9],[28,5,28,9],[67,5,67,9],[69,5,69,9],[47,5,47,9],[49,5,49,9],[51,5,51,9]]}
[null,"Cost Containment Designation Application Package"]
[null,"> SCHEDULE B: ECONOMIC HARDSHIP TESTS"]
[]
[null,"NAICS Industry Group (select)"]
[]
[]
[null,"Emission Information",null,null,null,"Certified Actuals"]
[]
[null,null,null,null,null,{"$f":"_xlfn.NUMBERVALUE(RIGHT('General Application Form'!$B$6,4),\".\",\",\")-1","v":-1}]
[]
[null,"Total Regulated Emissions",null,null,null,null,null,null,null,null,null,null,"tonnes CO2eq"]
[]
[null,"Imported Electricity",null,null,null,null,null,null,null,null,null,null,"MWh"]
[]
[null,"Imported Heat",null,null,null,null,null,null,null,null,null,null,"GJ"]
[]
[null,"Imported Hydrogen",null,null,null,null,null,null,null,null,null,null,"Tonnes"]
[]
[null,"Production Item 1"]
[]
[null,"Quantity",null,null,null,null,null,null,null,null,null,null,"[Enter Units]"]
[]
[null,"Assigned Facility Specific Benchmark\n(If not available, contact EPA)",null,null,null,{"$f":"F9","v":-1},{"$f":"F23+1","v":0},{"$f":"G23+1","v":1},2,3]
[null,null,null,null,null,null,null,null,null,null,null,null,"tonnes CO2eq per unit"]
[null,"Product High Performance Benchmark",null,null,null,null,null,null,null,null,null,null,"tonnes CO2eq per unit"]
[]
[null,"Production Item 2"]
[]
[null,"Quantity",null,null,null,null,null,null,null,null,null,null,"[Enter Units]"]
[]
[null,"Assigned Facility Specific Benchmark\n(If not available, contact EPA)",null,null,null,{"$f":"F9","v":-1},{"$f":"F31+1","v":0},{"$f":"G31+1","v":1},2,3]
[null,null,null,null,null,null,null,null,null,null,null,null,"tonnes CO2eq per unit"]
[null,"Product High Performance Benchmark",null,null,null,null,null,null,null,null,null,null,"tonnes CO2eq per unit"]
[]
[null,"Production Item 3"]
[]
[null,"Quantity",null,null,null,null,null,null,null,null,null,null,"[Enter Units]"]
[]
[null,"Assigned Facility Specific Benchmark\n(If not available, contact EPA)",null,null,null,{"$f":"F9","v":-1},{"$f":"F39+1","v":0},{"$f":"G39+1","v":1},2,3]
[null,null,null,null,null,null,null,null,null,null,null,null,"tonnes CO2eq per unit"]
[null,"Product High Performance Benchmark",null,null,null,null,null,null,null,null,null,null,"tonnes CO2eq per unit"]
[]
[]
[]
[null,"Change in Alberta Resource Royalty Payments",null,null,null,{"$f":"F9","v":-1}]
[null,null,null,null,null,null,null,null,null,null,null,null,"$"]
[]
[null,"Gross Sales Revenue",null,null,null,null,null,null,null,null,null,null,"$"]
[]
[null,"Fund Credit Price",null,null,null,{"$f":"VLOOKUP(F9,'(hidden) Schedule B - Appendix'!$B$7:$C$11,2,FALSE)","v":{"$error":"#N/A"}},null,null,null,null,null,null,"$ per tonne CO2eq"]
[]
[null,"Profit Margin",null,null,null,{"$f":"IFERROR(VLOOKUP($F$4,'(hidden) Schedule B - Appendix'!$C$19:$D$29,2,FALSE),0)","v":0},null,null,null,null,null,null,"%"]
[]
[null,"Compliance Obligations (potential EPCs)"]
[]
[null,"Allowable Emissions (AE)",null,null,null,{"$f":"F21*MAX(F24,F25)+F29*MAX(F32,F33)+F37*MAX(F40,F41)-(F13*_xlfn.XLOOKUP(F9,'(hidden) Schedule B - Appendix'!B55:B62,'(hidden) Schedule B - Appendix'!C55:C62)+F15*_xlfn.XLOOKUP(F9,'(hidden) Schedule B - Appendix'!B55:B62,'(hidden) Schedule B - Appendix'!E55:E62)+F17*_xlfn.XLOOKUP(F9,'(hidden) Schedule B - Appendix'!B55:B62,'(hidden) Schedule B - Appendix'!D55:D62))","v":{"$error":"#N/A"}},null,null,null,null,null,null,"tonnes CO2eq",null,null,null,null,null,null,null,null,null,null,null,null,null,null,null,"Allowable Emission =max(sum of products for facility specific benchmark,sum of products for high performance benchmark)- imported electricity/heat/hydrogen"]
[]
[null,"True-up Obligations",null,null,null,{"$f":"IFERROR(F$11-F$56,\"Check the information\")","v":"Check the information"},null,null,null,null,null,null,"tonnes"]
[]
[null,"Sales Test Ratio"]
[]
[null,"Sales Test Ratio",null,null,null,{"$f":"IFERROR(ROUND(((F58*F50)*(1-VLOOKUP(F9,'(hidden) Schedule B - Appendix'!$B$33:$C$41,2,FALSE))+F46)/F48,5),0)","v":0}]
[]
[null,"Does Sales Test Ratio exceed 0.03 threshold?",null,null,null,{"$f":"IF(F62>=0.03,\"Yes\",\"No\")","v":"No"}]
[]
[null,"Profit Test Ratio"]
[]
[null,"Profit Test Ratio",null,null,null,{"$f":"IFERROR(ROUND(F62*1/F52,5),0)","v":0}]
[]
[null,"Does Profit Test Ratio exceed 0.10 threshold?",null,null,null,{"$f":"IF(F68>=0.1,\"Yes\",\"No\")","v":"No"}]
[]
[null,"Eligibility Determination"]
[]
[null,"Is the facility eligible for cost containment based on above data?",null,null,null,{"$f":"IF(OR(F64=\"Yes\",F70=\"Yes\"),\"Yes\",\"No\")","v":"No"}]

{"sheet":"Schedule C","index":4,"n_rows":79,"n_cols":31,"rows_kept":79,"cut":false,"hidden":false,"merged":[[5,25,5,27],[0,1,0,7],[4,5,4,7],[4,10,4,12],[4,15,4,17],[4,20,4,22],[4,25,4,27],[30,1,31,3],[5,5,5,7],[5,10,5,12],[5,15,5,17],[5,20,5,22],[47,5,47,7],[47,10,47,12],[47,15,47,17],[47,20,47,22],[47,25,47,27],[45,5,45,7],[45,10,45,12],[45,15,45,17],[45,20,45,22],[45,25,45,27],[43,5,43,7],[43,10,43,12],[43,15,43,17],[43,20,43,22],[43,25,43,27],[49,5,49,7],[49,10,49,12],[49,15,49,17],[49,20,49,22],[49,25,49,27],[37,5,37,27],[39,5,39,27],[18,5,18,27],[20,5,20,27],[24,5,24,27],[26,5,26,27],[30,5,30,27],[35,5,35,27]]}
[null,"Cost Containment Designation Application Package"]
[null,"> SCHEDULE C – ADDITIONAL COST CONTAINMENT ALLOCATION (BCCA) APPLICATION "]
[]
[null,"Application to Request a BCCA"]
[]
[null,null,null,null,null,{"$f":"_xlfn.NUMBERVALUE(RIGHT('General Application Form'!$B$6,4),\".\",\",\")-1","v":-1}]
[]
[null,"Request BCCAs"]
[]
[]
[null,"BCCAs Requested"]
[]
[]
[null,"Products"]
[]
[]
[null,"BCCA Sales Test Ratio"]
[]
[null,"BCCA Sales Test Ratio",null,null,null,{"$f":"IFERROR(ROUND( ((F58*AVERAGE(F53,K53,P53,U53,Z53)*(1-AVERAGE(F54,K54,P54,U54,Z54)))-F62-(AVERAGE('Schedule D'!D37:H37)+AVERAGE('Schedule D'!I37:M37)+AVERAGE('Schedule D'!N37:R37)))/('Schedule B'!F48),5 ),0)","v":0}]
[]
[null,"Does the BCCA Sales Test Ratio exceed 0.03 threshold?",null,null,null,{"$f":"IF(F19>=0.03,\"Yes\",\"No\")","v":"No"}]
[]
[null," BCCA Profit Test Ratio"]
[]
[null,"BCCA Profit Test Ratio",null,null,null,{"$f":"IFERROR(ROUND(F19*1/'Schedule B'!F52,5),0)","v":0}]
[]
[null,"Does the BCCA Profit Test Ratio exceed 0.10 threshold?",null,null,null,{"$f":"IF(F25>=0.1,\"Yes\",\"No\")","v":"No"}]
[]
[null,"Eligibility Determination"]
[]
[null,"Is the facility eligible for additional cost containment allocations?",null,null,null,{"$f":"IF(OR(F21=\"Yes\",F27=\"Yes\"),\"Yes\",\"No\")","v":"No"}]
[]
[]
[null,"Revenue Ratios by Product"]
[]
[null,"Production Item 1",null,null,null,null,null,null,null,null,null,null,null,null,null,null,null,null,null,null,null,null,null,null,null,null,null,null,null,null,"% of total Gross Revenue"]
[]
[null,"Production Item 2",null,null,null,null,null,null,null,null,null,null,null,null,null,null,null,null,null,null,null,null,null,null,null,null,null,null,null,null,"% of total Gross Revenue"]
[]
[null,"Production Item 3",null,null,null,null,null,null,null,null,null,null,null,null,null,null,null,null,null,null,null,null,null,null,null,null,null,null,null,null,"% of total Gross Revenue"]
[]
[null,"Requested BCCAs"]
[]
[null,null,null,null,null,{"$f":"_xlfn.NUMBERVALUE(RIGHT('General Application Form'!$B$6,4),\".\",\",\")-1","v":-1},null,null,null,null,{"$f":"F44+1","v":0},null,null,null,null,{"$f":"K44+1","v":1},null,null,null,null,{"$f":"P44+1","v":2},null,null,null,null,{"$f":"U44+1","v":3}]
[]
[null,"Production Item 1",null,null,null,{"$f":"IFERROR(IF(F$31=\"No\",\"\",F64),)","v":""},null,null,null,null,{"$f":"IFERROR(IF(F$31=\"No\",\"\",F64),)","v":""},null,null,null,null,{"$f":"IFERROR(IF(F$31=\"No\",\"\",F64*0.75),)","v":""},null,null,null,null,{"$f":"IFERROR(IF(F$31=\"No\",\"\",F64*0.5),)","v":""},null,null,null,null,{"$f":"IFERROR(IF(F$31=\"No\",\"\",F64*0.25),)","v":""},null,null,null,null,{"$f":"CONCATENATE(\"tonnes of CO2 per \",'Schedule B'!M21)","v":"tonnes of CO2 per [Enter Units]"}]
[]
[null,"Production Item 2",null,null,null,{"$f":"IFERROR(IF(F$31=\"No\",\"\",F65),)","v":""},null,null,null,null,{"$f":"IFERROR(IF(F$31=\"No\",\"\",K65),)","v":""},null,null,null,null,{"$f":"IFERROR(IF(F$31=\"No\",\"\",P65),)","v":""},null,null,null,null,{"$f":"IFERROR(IF(F$31=\"No\",\"\",U65),)","v":""},null,null,null,null,{"$f":"IFERROR(IF(F$31=\"No\",\"\",Z65),)","v":""},null,null,null,null,{"$f":"CONCATENATE(\"tonnes of CO2 per \",'Schedule B'!M29)","v":"tonnes of CO2 per [Enter Units]"}]
[]
[null,"Production Item 3",null,null,null,{"$f":"IFERROR(IF(F$31=\"No\",\"\",F66),)","v":""},null,null,null,null,{"$f":"IFERROR(IF(F$31=\"No\",\"\",K66),)","v":""},null,null,null,null,{"$f":"IFERROR(IF(F$31=\"No\",\"\",P66),)","v":""},null,null,null,null,{"$f":"IFERROR(IF(F$31=\"No\",\"\",U66),)","v":""},null,null,null,null,{"$f":"IFERROR(IF(F$31=\"No\",\"\",Z66),)","v":""},null,null,null,null,{"$f":"CONCATENATE(\"tonnes of CO2 per \",'Schedule B'!M37)","v":"tonnes of CO2 per [Enter Units]"}]
[]
[]
[null,"FC_Price",null,null,null,{"$f":"_xlfn.XLOOKUP(F44,TBL1_Fund_Price[Year],TBL1_Fund_Price[TIER Fund Credit Price ($ per Tonne CO2eq)])","v":{"$error":"#N/A"}},null,null,null,null,{"$f":"_xlfn.XLOOKUP(K44,TBL1_Fund_Price[Year],TBL1_Fund_Price[TIER Fund Credit Price ($ per Tonne CO2eq)])","v":{"$error":"#N/A"}},null,null,null,null,{"$f":"_xlfn.XLOOKUP(P44,TBL1_Fund_Price[Year],TBL1_Fund_Price[TIER Fund Credit Price ($ per Tonne CO2eq)])","v":{"$error":"#N/A"}},null,null,null,null,{"$f":"_xlfn.XLOOKUP(U44,TBL1_Fund_Price[Year],TBL1_Fund_Price[TIER Fund Credit Price ($ per Tonne CO2eq)])","v":{"$error":"#N/A"}},null,null,null,null,{"$f":"_xlfn.XLOOKUP(Z44,TBL1_Fund_Price[Year],TBL1_Fund_Price[TIER Fund Credit Price ($ per Tonne CO2eq)])","v":{"$error":"#N/A"}}]
[null,"TaxRate",null,null,null,{"$f":"_xlfn.XLOOKUP(F44,TBL3_Tax_Rates[Year],TBL3_Tax_Rates[Tax Rate])","v":{"$error":"#N/A"}},null,null,null,null,{"$f":"_xlfn.XLOOKUP(K44,TBL3_Tax_Rates[Year],TBL3_Tax_Rates[Tax Rate])","v":{"$error":"#N/A"}},null,null,null,null,{"$f":"_xlfn.XLOOKUP(P44,TBL3_Tax_Rates[Year],TBL3_Tax_Rates[Tax Rate])","v":{"$error":"#N/A"}},null,null,null,null,{"$f":"_xlfn.XLOOKUP(U44,TBL3_Tax_Rates[Year],TBL3_Tax_Rates[Tax Rate])","v":{"$error":"#N/A"}},null,null,null,null,{"$f":"_xlfn.XLOOKUP(Z44,TBL3_Tax_Rates[Year],TBL3_Tax_Rates[Tax Rate])","v":{"$error":"#N/A"}}]
[null,"Prod. Allocs.",null,null,null,{"$f":"'Schedule B'!F21*MAX('Schedule B'!F24:F25)+'Schedule B'!F29*MAX('Schedule B'!F32:F33)+'Schedule B'!F37*MAX('Schedule B'!F40:F41)","v":0},null,null,null,null,{"$f":"'Schedule B'!F21*MAX('Schedule B'!G24:G25)+'Schedule B'!F29*MAX('Schedule B'!G32:G33)+'Schedule B'!F37*MAX('Schedule B'!G40:G41)","v":0},null,null,null,null,{"$f":"'Schedule B'!F21*MAX('Schedule B'!H24:H25)+'Schedule B'!F29*MAX('Schedule B'!H32:H33)+'Schedule B'!F37*MAX('Schedule B'!H40:H41)","v":0},null,null,null,null,{"$f":"'Schedule B'!F21*MAX('Schedule B'!I24:I25)+'Schedule B'!F29*MAX('Schedule B'!I32:I33)+'Schedule B'!F37*MAX('Schedule B'!I40:I41)","v":0},null,null,null,null,{"$f":"'Schedule B'!F21*MAX('Schedule B'!J24:J25)+'Schedule B'!F29*MAX('Schedule B'!J32:J33)+'Schedule B'!F37*MAX('Schedule B'!J40:J41)","v":0}]
[null,"Scope Adjust",null,null,null,{"$f":"'Schedule B'!F13*_xlfn.XLOOKUP(F44,'(hidden) Schedule B - Appendix'!B55:B62,'(hidden) Schedule B - Appendix'!C55:C62)+'Schedule B'!F15*_xlfn.XLOOKUP(F44,'(hidden) Schedule B - Appendix'!B55:B62,'(hidden) Schedule B - Appendix'!E55:E62)+'Schedule B'!F17*_xlfn.XLOOKUP(F44,'(hidden) Schedule B - Appendix'!B55:B62,'(hidden) Schedule B - Appendix'!D55:D62)","v":{"$error":"#N/A"}},null,null,null,null,{"$f":"'Schedule B'!F13*_xlfn.XLOOKUP(K44,'(hidden) Schedule B - Appendix'!B55:B62,'(hidden) Schedule B - Appendix'!C55:C62)+'Schedule B'!F15*_xlfn.XLOOKUP(K44,'(hidden) Schedule B - Appendix'!B55:B62,'(hidden) Schedule B - Appendix'!E55:E62)+'Schedule B'!F17*_xlfn.XLOOKUP(K44,'(hidden) Schedule B - Appendix'!B55:B62,'(hidden) Schedule B - Appendix'!D55:D62)","v":{"$error":"#N/A"}},null,null,null,null,{"$f":"'Schedule B'!F13*_xlfn.XLOOKUP(P44,'(hidden) Schedule B - Appendix'!B55:B62,'(hidden) Schedule B - Appendix'!C55:C62)+'Schedule B'!F15*_xlfn.XLOOKUP(P44,'(hidden) Schedule B - Appendix'!B55:B62,'(hidden) Schedule B - Appendix'!E55:E62)+'Schedule B'!F17*_xlfn.XLOOKUP(P44,'(hidden) Schedule B - Appendix'!B55:B62,'(hidden) Schedule B - Appendix'!D55:D62)","v":{"$error":"#N/A"}},null,null,null,null,{"$f":"'Schedule B'!F13*_xlfn.XLOOKUP(U44,'(hidden) Schedule B - Appendix'!B55:B62,'(hidden) Schedule B - Appendix'!C55:C62)+'Schedule B'!F15*_xlfn.XLOOKUP(U44,'(hidden) Schedule B - Appendix'!B55:B62,'(hidden) Schedule B - Appendix'!E55:E62)+'Schedule B'!F17*_xlfn.XLOOKUP(U44,'(hidden) Schedule B - Appendix'!B55:B62,'(hidden) Schedule B - Appendix'!D55:D62)","v":{"$error":"#N/A"}},null,null,null,null,{"$f":"'Schedule B'!F13*_xlfn.XLOOKUP(Z44,'(hidden) Schedule B - Appendix'!B55:B62,'(hidden) Schedule B - Appendix'!C55:C62)+'Schedule B'!F15*_xlfn.XLOOKUP(Z44,'(hidden) Schedule B - Appendix'!B55:B62,'(hidden) Schedule B - Appendix'!E55:E62)+'Schedule B'!F17*_xlfn.XLOOKUP(Z44,'(hidden) Schedule B - Appendix'!B55:B62,'(hidden) Schedule B - Appendix'!D55:D62)","v":{"$error":"#N/A"}}]
[null,"AE",null,null,null,{"$f":"F55-F56","v":{"$error":"#N/A"}},null,null,null,null,{"$f":"K55-K56","v":{"$error":"#N/A"}},null,null,null,null,{"$f":"P55-P56","v":{"$error":"#N/A"}},null,null,null,null,{"$f":"U55-U56","v":{"$error":"#N/A"}},null,null,null,null,{"$f":"Z55-Z56","v":{"$error":"#N/A"}}]
[null,"TUO",null,null,null,{"$f":"'Schedule B'!$F$11-F57","v":{"$error":"#N/A"}},null,null,null,null,{"$f":"'Schedule B'!$F$11-K57","v":{"$error":"#N/A"}},null,null,null,null,{"$f":"'Schedule B'!$F$11-P57","v":{"$error":"#N/A"}},null,null,null,null,{"$f":"'Schedule B'!$F$11-U57","v":{"$error":"#N/A"}},null,null,null,null,{"$f":"'Schedule B'!$F$11-Z57","v":{"$error":"#N/A"}}]
[null,"CUL",null,null,null,0.6,null,null,null,null,0.7,null,null,null,null,0.8,null,null,null,null,0.9,null,null,null,null,0.9]
[null,"Delta_Royalty",null,null,null,{"$f":"'Schedule B'!F46","v":0},null,null,null,null,{"$f":"F60*(K53/F53)","v":{"$error":"#N/A"}},null,null,null,null,{"$f":"K60*(P53/K53)","v":{"$error":"#N/A"}},null,null,null,null,{"$f":"P60*(U53/P53)","v":{"$error":"#N/A"}},null,null,null,null,{"$f":"U60*(Z53/U53)","v":{"$error":"#N/A"}}]
[null,"CFV",null,null,null,{"$f":"(F58*F53*0.15*(1-F59))","v":{"$error":"#N/A"}},{"$f":"(G58*G53*0.15*(1-G59))","v":0},null,null,null,{"$error":"#N/A"},null,null,null,0,{"$error":"#N/A"},0,null,null,null,{"$error":"#N/A"},0,null,null,null,{"$error":"#N/A"}]
[null,"CFV_Y0",null,null,null,{"$f":"AVERAGE(F61,K61,P61,U61,Z61)","v":{"$error":"#N/A"}}]
[null,null,null,null,null,null,null,null,null,null,0,null,null,null,null,0,null,null,null,null,0,null,null,null,null,0]
[null,"BCCB_1_n",null,null,null,0,null,null,null,null,0,null,null,null,null,0,null,null,null,null,0,null,null,null,null,0]
[null,"BCCB_2_n",null,null,null,0,null,null,null,null,0,null,null,null,null,0,null,null,null,null,0,null,null,null,null,0]
[null,"BCCB_3_n",null,null,null,0,null,null,null,null,0,null,null,null,null,0,null,null,null,null,0,null,null,null,null,0]
[null,"Updated Compliance Obligation",null,null,null,{"$f":"((AVERAGE(F58,K58,P58,U58,Z58)-('Schedule B'!F21*'Schedule C'!F64+'Schedule B'!F29*'Schedule C'!F65+'Schedule B'!F37*'Schedule C'!F66))*AVERAGE(F53,K53,P53,U53,Z53))*(1-AVERAGE(F54,K54,P54,U54,Z54))+AVERAGE(F60,K60,P60,U60,Z60)","v":{"$error":"#N/A"}}]
[null,"A_n",null,null,null,{"$f":"F67-0.03*('Schedule B'!F48)-F62-IFERROR(AVERAGE('Schedule B'!F46:J46),0)-(AVERAGE('Schedule D'!D37:H37)+AVERAGE('Schedule D'!I37:M37)+AVERAGE('Schedule D'!N37:R37))","v":{"$error":"#N/A"}}]
[null,"B_n",null,null,null,{"$f":"F67-0.1*('Schedule B'!F48*'Schedule B'!F52)-F62-IFERROR(AVERAGE('Schedule B'!F46:J46),0)-(AVERAGE('Schedule D'!D37:H37)+AVERAGE('Schedule D'!I37:M37)+AVERAGE('Schedule D'!N37:R37))","v":{"$error":"#N/A"}}]
[null,"C_n",null,null,null,{"$f":"MAX(F68,F69)","v":{"$error":"#N/A"}}]
[null,"BCCA_1_n+1",null,null,null,{"$f":"IFERROR(IF(ISNUMBER('Schedule B'!F21),F64+(1/AVERAGE(F53,K53,P53,U53,Z53))*F70*F36*(1/'Schedule B'!F21),0),0)","v":0}]
[null,"BCCA_2_n+1",null,null,null,{"$f":"IFERROR(IF(ISNUMBER('Schedule B'!F29),F65+(1/AVERAGE(F53,K53,P53,U53,Z53))*F70*F38*(1/'Schedule B'!F29),0),0)","v":0}]
[null,"BCCA_3_n+1",null,null,null,{"$f":"IFERROR(IF(ISNUMBER('Schedule B'!F37),F66+(1/AVERAGE(F53,K53,P53,U53,Z53))*F70*F40*(1/'Schedule B'!F37),0),0)","v":0}]
[]
[]
[null,"Request BCCAs",null,null,null,false]
[null,"Products",null,1,null,false]
[null,null,null,2,null,false]
[null,null,null,3,null,false]

{"sheet":"(hidden) Schedule B - Appendix","index":5,"n_rows":62,"n_cols":5,"rows_kept":62,"cut":false,"hidden":true,"merged":[[1,1,1,5]]}
[null,"Cost Containment Designation Application Package"]
[null,"> SCHEDULE B & C APPENDIX"]
[]
[null,"Table 1: Climate Change Emissions Management Fund (CCEMF) Credit Price Assumption"]
[]
[null,"Year","TIER Fund Credit Price ($ per Tonne CO2eq)"]
[null,2023,65]
[null,2024,80]
[null,2025,95]
[null,2026,110]
[null,2027,125]
[null,2028,140]
[null,2029,155]
[null,2030,170]
[]
[null,"Table 2: Net Operating Ratio Margins for Sectors"]
[]
[null,"NAICS","NAICS Industry Group","Net Operating Margin Ratio"]
[null,21111,"21111 - Oil and Gas Extraction (except oil sands)",0.14049074443520868]
[null,21114,"21114 - Oil sands extraction",0.54720415485438556]
[null,2121,"2121 - Coal Mining",0.15059943582510579]
[null,3116,"3116 - Meat product manufacturing",0.10135173815850285]
[null,3221,"3221 - Pulp, paper and paperboard mills",0.14264767571612616]
[null,3241,"3241 - Petroleum and coal product manufacturing",0.20821417228121838]
[null,3251,"3251 - Basic Chemical Manufacturing",0.28107332801091384]
[null,3253,"3253 - Pesticide, Fertilizer and other agricultural chemical manufacturing",0.20096607599775096]
[null,3273,"3273 - Cement and concrete product manufacturing",0.21974478199749978]
[null,3314,"3314 - Non-ferrous metal (except aluminum) production and processing",1.4173290196521235E-2]
[null,4862,"4862 - Pipeline transportation of natural gas",0.62638147668414923]
[]
[null,"Table 3: Corporate Tax Rates for Facilities"]
[]
[null,"Year","Tax Rate"]
[null,2020,0.25]
[null,2021,0.24]
[null,2022,0.23]
[null,2023,0.23]
[null,2024,0.23]
[null,2025,0.23]
[null,2026,0.23]
[null,2027,0.23]
[]
[null,"Table 4: Compliance Flex Valuation"]
[]
[null,"Year","Credit Use Limit","Credit Price Discount"]
[null,2023,0.6,0.15]
[null,2024,0.7,0.15]
[null,2025,0.8,0.15]
[null,2026,0.9,0.15]
[null,2027,0.9,0.15]
[]
[null,"Table 5: Indirect HPBs"]
[]
[null,"Year","Electricity","Hydrogen","Heat"]
[null,2023,0.36259999999999998,8.9930000000000003,6.173E-2]
[null,2024,0.35520000000000002,8.9190000000000005,6.0470000000000003E-2]
[null,2025,0.3478,8.8439999999999994,5.9209999999999999E-2]
[null,2026,0.34039999999999998,8.7690000000000001,5.7950000000000002E-2]
[null,2027,0.32679999999999998,8.6319999999999997,5.5640000000000002E-2]
[null,2028,0.31319999999999998,8.4939999999999998,5.3319999999999999E-2]
[null,2029,0.29959999999999998,8.3569999999999993,5.101E-2]
[null,2030,0.28599999999999998,8.2200000000000006,4.8689999999999997E-2]

{"sheet":"Schedule D","index":6,"n_rows":81,"n_cols":18,"rows_kept":81,"cut":false,"hidden":false,"merged":[[78,6,78,7],[79,6,79,7],[66,10,66,12],[74,10,74,11],[75,10,75,11],[76,10,76,11],[77,10,77,11],[74,12,74,13],[75,12,75,13],[76,12,76,13],[77,12,77,13],[78,12,78,13],[79,12,79,13],[76,8,76,9],[77,8,77,9],[78,8,78,9],[79,8,79,9],[66,4,66,9],[80,6,80,7],[69,8,69,9],[70,8,70,9],[71,8,71,9],[72,8,72,9],[73,8,73,9],[74,8,74,9],[75,8,75,9],[80,12,80,13],[80,8,80,9],[69,6,69,7],[70,6,70,7],[71,6,71,7],[72,6,72,7],[73,6,73,7],[74,6,74,7],[75,6,75,7],[76,6,76,7],[77,6,77,7],[69,10,69,11],[70,10,70,11],[71,10,71,11],[72,10,72,11],[80,10,80,11],[76,1,76,3],[77,1,77,3],[78,1,78,3],[79,1,79,3],[80,1,80,3],[69,4,69,5],[70,4,70,5],[71,4,71,5],[72,4,72,5],[73,4,73,5],[69,1,69,3],[70,1,70,3],[71,1,71,3],[72,1,72,3],[73,1,73,3],[74,1,74,3],[75,1,75,3],[80,4,80,5],[74,4,74,5],[75,4,75,5],[76,4,76,5],[77,4,77,5],[78,4,78,5],[79,4,79,5],[55,4,55,9],[55,1,55,3],[56,1,56,3],[56,4,56,9],[44,1,44,2],[45,1,45,2],[46,1,46,2],[39,1,39,2],[40,1,40,2],[41,1,41,2],[42,1,42,2],[43,1,43,2],[47,1,47,2],[48,1,48,2],[48,3,48,17],[39,3,39,17],[40,3,40,17],[41,3,41,17],[42,3,42,17],[43,3,43,17],[44,3,44,17],[45,3,45,17],[46,3,46,17],[47,3,47,17],[60,1,60,3],[61,1,61,3],[62,1,62,3],[27,1,27,2],[28,1,28,2],[29,1,29,2],[30,1,30,2],[16,1,16,2],[17,1,17,2],[18,1,18,2],[19,1,19,2],[20,1,20,2],[24,1,25,2],[21,1,21,2],[31,1,31,2],[32,1,32,2],[33,1,33,2],[34,1,34,2],[35,1,35,2],[36,1,36,2],[17,5,17,6],[17,7,17,9],[18,3,18,4],[18,5,18,6],[18,7,18,9],[15,3,15,4],[26,1,26,2],[21,10,21,12],[19,10,19,12],[20,10,20,12],[17,10,17,12],[18,10,18,12],[21,3,21,4],[21,5,21,6],[21,7,21,9],[19,3,19,4],[19,5,19,6],[19,7,19,9],[20,3,20,4],[20,5,20,6],[24,3,24,7],[24,8,24,12],[17,3,17,4],[0,1,0,7],[7,1,7,2],[51,1,51,14],[52,1,52,2],[10,3,10,4],[10,5,10,6],[10,10,10,12],[11,10,11,12],[12,10,12,12],[13,10,13,12],[14,10,14,12],[14,3,14,4],[14,5,14,6],[15,1,15,2],[12,3,12,4],[12,5,12,6],[13,3,13,4],[20,7,20,9],[13,5,13,6],[10,1,10,2],[15,5,15,6],[15,7,15,9],[15,10,15,12],[16,3,16,4],[4,1,4,14],[5,1,5,14],[6,1,6,14],[16,5,16,6],[16,7,16,9],[16,10,16,12],[12,7,12,9],[13,7,13,9],[14,7,14,9],[11,1,11,2],[11,7,11,9],[10,7,10,9],[11,5,11,6],[11,3,11,4],[12,1,12,2],[13,1,13,2],[14,1,14,2],[24,13,24,17],[55,13,55,15],[56,13,56,15],[57,13,57,15],[58,13,58,15],[78,10,78,11],[79,10,79,11],[56,10,56,12],[57,10,57,12],[55,10,55,12],[59,13,59,15],[60,13,60,15],[61,13,61,15],[62,13,62,15],[63,13,63,15],[64,13,64,15],[65,13,65,15],[73,10,73,11],[66,13,66,15],[69,12,69,13],[70,12,70,13],[71,12,71,13],[72,12,72,13],[73,12,73,13],[63,1,63,3],[64,1,64,3],[57,1,57,3],[57,4,57,9],[66,1,66,3],[64,10,64,12],[65,10,65,12],[62,10,62,12],[63,10,63,12],[60,10,60,12],[61,10,61,12],[58,10,58,12],[59,10,59,12],[65,4,65,9],[65,1,65,3],[58,1,58,3],[59,1,59,3],[58,4,58,9],[59,4,59,9],[60,4,60,9],[61,4,61,9],[62,4,62,9],[63,4,63,9],[64,4,64,9]]}
[null,"Cost Containment Designation Application Package"]
[]
[null,"> SCHEDULE D: FUNDING AND BENEFITS DISCLOSURE"]
[]
[null,"Is the applicant receiving, or will they receive, any benefits or funding attributable to the facility under an initiative of the Government of Alberta, an agency of the Government of Alberta, or a provincial corporation related to:"]
[null,"o  industrial energy efficiency, \no emissions reductions, \no green innovation and technology, or\no renewable energy? \n"]
[]
[null,"select answer…"]
[]
[null,"If yes, please identify for each benefit:"]
[null,"Benefit (name)",null,"Agreement Number\n(if applicable)",null,"Agreement Number\n(if applicable)",null,"Total grant or funding amount ($) committed to the applicant by the Government of Alberta, an agency of the Government of Alberta, or a provincial corporation over the life of the agreement (if applicable)",null,null,"Total funding ($) received by the applicant from any of those three sources prior to the date of application (if applicable)"]
[]
[]
[]
[]
[]
[]
[]
[]
[]
[]
[null,null,null,null,null,"TOTAL",null,{"$f":"SUM(H12:J21)","v":0},null,null,{"$f":"SUM(K12:M21)","v":0}]
[]
[null,"Anticipated calendar year disbursements of the amount identified above, for each benefit, from each of the three sources ($ thousands)"]
[null,"Benefit (name)",null,"Grant or funding amount committed to the applicant by the Government of Alberta",null,null,null,null,"Grant or funding amount committed to the applicant by an agency of the Government of Alberta",null,null,null,null,"Grant or funding amount committed to the applicant by a provincial corporation"]
[null,null,null,{"$f":"_xlfn.NUMBERVALUE(RIGHT('General Application Form'!$B$6,4),\".\",\",\")-1","v":-1},{"$f":"D26+1","v":0},{"$f":"E26+1","v":1},{"$f":"F26+1","v":2},{"$f":"G26+1","v":3},{"$f":"_xlfn.NUMBERVALUE(RIGHT('General Application Form'!$B$6,4),\".\",\",\")-1","v":-1},{"$f":"I26+1","v":0},{"$f":"J26+1","v":1},{"$f":"K26+1","v":2},{"$f":"L26+1","v":3},{"$f":"_xlfn.NUMBERVALUE(RIGHT('General Application Form'!$B$6,4),\".\",\",\")-1","v":-1},{"$f":"N26+1","v":0},{"$f":"O26+1","v":1},{"$f":"P26+1","v":2},{"$f":"Q26+1","v":3}]
[null,{"$f":"IF(B12>0,B12,\"\")","v":""}]
[null,{"$f":"IF(B13>0,B13,\"\")","v":""}]
[null,""]
[null,""]
[null,""]
[null,""]
[null,""]
[null,""]
[null,""]
[null,""]
[null,"TOTAL",null,{"$f":"SUM(D27:D36)","v":0},{"$f":"SUM(E27:E36)","v":0},{"$f":"SUM(F27:F36)","v":0},{"$f":"SUM(G27:G36)","v":0},0,0,0,0,0,0,0,0,0,0,0]
[]
[null,"Briefly describe the funding or benefits provided, including intent and outcomes"]
[null,{"$f":"IF(B12>0,B12,\"\")","v":""}]
[null,{"$f":"IF(B13>0,B13,\"\")","v":""}]
[null,""]
[null,""]
[null,""]
[null,""]
[null,""]
[null,""]
[null,""]
[null,""]
[]
[]
[null,"Is the applicant receiving, or will they receive, other funding or support from the Government of Alberta, an agency of the Government of Alberta, or a provincial corporation?"]
[null,"No"]
[]
[null,"If yes, please identify for each benefit:"]
[null,"Benefit (name)",null,null,"Description of Benefit Source",null,null,null,null,null,"Total Amount of Public Funding ($)\n(if applicable)",null,null,"Funding ($) Allocated to Facility for which this Application is being Submitted?"]
[]
[]
[]
[]
[]
[]
[]
[]
[]
[]
[null,null,null,null,"TOTAL",null,null,null,null,null,{"$f":"SUM(K57:M66)","v":0},null,null,{"$f":"SUM(N57:P66)","v":0}]
[]
[null,"Anticipated calendar year disbursements of the public funding amount identified above, for each benefit ($ thousands)"]
[null,"Benefit (name)",null,null,{"$f":"_xlfn.NUMBERVALUE(RIGHT('General Application Form'!$B$6,4),\".\",\",\")-1","v":-1},null,{"$f":"E70+1","v":0},null,{"$f":"G70+1","v":1},null,{"$f":"I70+1","v":2},null,{"$f":"K70+1","v":3}]
[null,{"$f":"IF(B57>0,B57,\"\")","v":""}]
[null,""]
[null,""]
[null,""]
[null,""]
[null,""]
[null,""]
[null,""]
[null,""]
[null,""]
[null,"TOTAL",null,null,{"$f":"SUM(E71:E80)","v":0},null,{"$f":"SUM(G71:G80)","v":0},null,{"$f":"SUM(I71:I80)","v":0},null,{"$f":"SUM(K71:K80)","v":0},null,{"$f":"SUM(M71:M80)","v":0}]

{"sheet":"Schedule E","index":7,"n_rows":38,"n_cols":4,"rows_kept":38,"cut":false,"hidden":false,"merged":[[24,1,24,2],[24,3,24,6],[25,1,25,2],[25,3,25,6],[20,3,20,6],[21,3,21,6],[22,1,22,2],[22,3,22,6],[23,1,23,2],[23,3,23,6],[38,1,41,14],[28,1,31,14],[15,3,15,6],[16,3,16,6],[17,3,17,6],[18,3,18,6],[19,3,19,6],[21,1,21,2],[19,1,19,2],[20,1,20,2],[17,1,17,2],[18,1,18,2],[15,1,15,2],[16,1,16,2],[34,1,34,14],[35,1,35,2],[0,1,0,7],[5,1,5,2],[4,1,4,14],[8,1,9,14],[12,1,12,7]]}
[null,"Cost Containment Designation Application Package"]
[]
[null,"> SCHEDULE E: PREVIOUS COST CONTAINMENT PROGRAM STATUS"]
[]
[null,"Has the applicant received cost containment status in one or more previous years in respect to the facility for which this application is being submitted?"]
[null,"select answer…"]
[]
[null,"If yes, which year(s)?"]
[]
[]
[]
[null,"Which relief mechanisms did the applicant receive for the facility as a result of the status?"]
[]
[]
[null,"Additional Allocations Details (if applicable)"]
[null,"Compliance Year(s) Received",null,"Quantify additional allocations received for each applicable year"]
[]
[]
[]
[]
[]
[]
[]
[]
[]
[]
[]
[null,"Why was the applicant deemed no longer eligible for cost containment status with respect to the facility?"]
[]
[]
[]
[]
[]
[]
[null,"Has the applicant received cost containment status in one or more previous years in respect to any other facility?"]
[null,"select answer…"]
[]
[null,"If yes, name of facility and years cost containment status granted"]

{"sheet":"Schedule F","index":8,"n_rows":15,"n_cols":13,"rows_kept":15,"cut":false,"hidden":false,"merged":[[13,1,13,3],[13,5,13,6],[13,8,13,10],[0,1,0,7],[5,1,5,3],[5,6,5,14],[9,1,9,14],[10,1,10,3],[10,5,10,6],[10,8,10,10],[10,12,10,14]]}
[null,"Cost Containment Designation Application Package"]
[]
[null,"> SCHEDULE F: AGREEMENT AND STATEMENT OF CERTIFICATION"]
[]
[null,"Application Date (mm/dd/yyyy)",null,null,null,null,"Legal Business Name of Applicant (Person Responsible as per Section 1(1)hh of the TIER Regulation)"]
[]
[]
[null,"Signature of Certifying Official"]
[]
[null,"I, the undersigned, having the authority to bind the applicant, hereby certify that I have reviewed the information being submitted in the application forms and supporting documents being submitted. I certify that I have exercised due dilligence to ensure that the information is reasonable and complete, and that, to the best of my knowledge, the historical quantities submitted herein are accurate and that forecasted information is based on reasonable estimates using available data. \n\nI understand that any incomplete question or schedule will result in the application to be considered ineligible and subsequently rejected."]
[]
[null,"Signature of Certifying Official",null,null,null,"Date",null,null,"Full Name",null,null,null,"Title"]
[]
[]
[null,"Signature of Witness",null,null,null,"Date",null,null,"Print Witness Name"]

{"sheet":"dropdowns","index":9,"n_rows":14,"n_cols":4,"rows_kept":14,"cut":false,"hidden":true,"merged":[]}
[null,"Y/N",null,"Provinces"]
[null,"select answer…",null,"AB"]
[null,"Yes",null,"BC"]
[null,"No",null,"MB"]
[null,null,null,"NB"]
[null,null,null,"NL"]
[null,null,null,"NT"]
[null,null,null,"NS"]
[null,null,null,"NU"]
[null,null,null,"ON"]
[null,null,null,"PE"]
[null,null,null,"QC"]
[null,null,null,"SK"]
[null,null,null,"YT"]